Cogmind - Beta 17.1 @@@ ROGUE MODE // 2026.09.05 @ 02:28:16 Player: Kite Result: Destroyed by P5-F08(j) with Overtuned Pulse Rifle Performance ------------- Evolutions (1) 500 Regions Visited (6) 1200 Robots Destroyed (78) 390 Value Destroyed (1825) 1825 Prototype IDs (6) 120 Alien Tech Used (0) 0 Bonus (1050) 1050 TOTAL SCORE: 5085 Bonus ------- Follower Combat Kills 250 Registered with UFD 300 Met Optimus in HQ 500 Cogmind --------- Core Integrity 0/400 Matter 225/300 Energy 280/280 System Corruption 0% Temperature Warm (118) Movement Treading (240) Ox1 Location -9/Scraptown Parts ------- > --- POWER (1) -------- Heavy Ion Engine > --- PROPULSION (3) --- Light Treads Light Treads Improved Treads > --- UTILITY (3) ------ Huge Storage Unit Makeshift Light Armor Plating Authchip [Device] > --- WEAPON (2) ------- Mini Grenade Launcher Maul > --- INVENTORY (25) --- Light Treads Light Treads Light Treads Light Treads Ballwheel Makeshift Light Armor Plating Makeshift Light Armor Plating Makeshift Light Armor Plating Drone Bay (2/2) Siege Cannon Replica Plasma Cutter CPS Tube (2) CPS Tube (2) CPS Tube (2) CPS Tube (2) Maul Maul Powered Hammer Axe Peak State ------------ > --- POWER ------------ Heavy Ion Engine > --- PROPULSION ------- Light Treads Improved Treads Medium Treads > --- UTILITY ---------- Huge Storage Unit Makeshift Light Armor Plating Authchip [Device] > --- WEAPON ----------- Maul Maul > --- INVENTORY -------- Light Treads Light Treads Light Treads Light Treads Light Treads Light Treads Ballwheel Makeshift Light Armor Plating Makeshift Light Armor Plating Makeshift Light Armor Plating Drone Bay Mini Grenade Launcher Plasma Cutter CPS Tube CPS Tube CPS Tube CPS Tube Maul Powered Hammer Axe [Rating: 29] Favorites ----------- Power Heavy Ion Engine Engine Heavy Ion Engine Propulsion Improved Aluminum Leg Treads Light Treads Leg Improved Aluminum Leg Utility Drone Bay Device Drone Bay Storage High-capacity Storage Unit Processor Transport Network Coupler Hackware Authchip [Device] Protection Improved Light Armor Plating Weapon Maul Energy Gun Medium Laser Energy Cannon Advanced Beam Cannon Ballistic Gun Light Assault Rifle Launcher Mini Grenade Launcher Impact Weapon Maul Build | -11 -10 -10 -9 -9 -9 -9 ------- Run | Yrd Mat Min Mat Sto Rec Scr Slots Evolved 2 | . . . 2 . . . Power . | . . . . . . . Propulsion 1 | . . . 1 . . . Utility 1 | . . . 1 . . . Weapon . | . . . . . . . Parts Attached 50 | 6 . . 9 22 4 9 Power 4 | 1 . . 1 1 1 . Engine 4 | 1 . . 1 1 1 . Core . | . . . . . . . Reactor . | . . . . . . . Propulsion 16 | 2 . . 6 2 . 6 Treads 8 | 2 . . . . . 6 Leg 8 | . . . 6 2 . . Wheel . | . . . . . . . Hover . | . . . . . . . Flight . | . . . . . . . Utility 16 | 1 . . . 9 3 3 Device 5 | . . . . 5 . . Storage 5 | 1 . . . 2 2 . Processor 1 | . . . . 1 . . Hackware 1 | . . . . . . 1 Protection 4 | . . . . 1 1 2 Artifact . | . . . . . . . Weapon 14 | 2 . . 2 10 . . Energy Gun 1 | . . . 1 . . . Energy Cannon 4 | . . . . 4 . . Ballistic Gun 5 | 2 . . . 3 . . Ballistic Cannon . | . . . . . . . Launcher 2 | . . . 1 1 . . Special Weapon . | . . . . . . . Impact Weapon 2 | . . . . 2 . . Slashing Weapon . | . . . . . . . Piercing Weapon . | . . . . . . . Special Melee Weapon . | . . . . . . . Unidentified Prototypes 4 | . . . 1 2 1 . Corrupted Parts 1 | . . . . . . 1 System Corruption 3 | . . . . . . 3 Parts Lost 5 | . . . 1 3 . 1 Power . | . . . . . . . Propulsion 2 | . . . . 1 . 1 Utility 1 | . . . . 1 . . Weapon 2 | . . . 1 1 . . Highest Loss Streak 1 | . . . 1 1 . 1 To Critical Strikes . | . . . . . . . Average Backups 14 | . 3 4 7 11 16 19 Power . | . 1 2 1 . 1 . Propulsion 6 | . . . 1 7 9 6 Utility 2 | . . 1 1 1 2 4 Weapon 3 | . 1 1 2 3 3 4 Tool/Special . | . . . . . . . Unused Backups 39 | . . . 3 13 . 23 Power 3 | . . . 3 . . . Propulsion 11 | . . . . 5 . 6 Utility 6 | . . . . . . 6 Weapon 13 | . . . . 8 . 5 Tool/Special 6 | . . . . . . 6 Average Slot Usage (%) 92 | . 85 85 71 85 98 99 Engine 11 | . 14 14 10 11 11 11 Treads 14 | . 28 28 6 . . 31 Leg 17 | . . . 21 32 33 1 Device 6 | . . . . 5 17 2 Storage 11 | . 14 14 11 11 11 11 Hackware 2 | . . . . . . 8 Protection 5 | . . . . 1 3 11 Energy Gun 1 | . . . 3 3 . . Energy Cannon 1 | . . . . 5 . . Ballistic Gun 6 | . 28 28 17 8 . . Impact Weapon 13 | . . . . 2 22 21 Peak Build Rating 29 | 6 6 6 12 25 26 29 Average Rating 18 | 4 6 6 7 16 23 23 On Entrance 10 | . 6 6 6 11 25 22 Avg Prop Armor Cover (%) 10 | . . . 10 . . . Naked Turns . | . . . . . . . Heaviest Build 106 | 13 13 13 18 46 106 98 Greatest Support 71 | 40 40 40 40 39 36 71 Greatest Overweight (x) 2 | . . . . 1 2 1 Average Overweight (x) . | . . . . . 1 . Largest Inventory Capacity 25 | 8 8 8 8 15 25 25 Average Capacity 16 | 7 8 8 8 12 21 20 Most Carried 25 | 2 4 6 8 15 19 25 Average Carried 14 | . 3 4 7 11 16 19 Final Capacity 25 | 8 8 8 8 15 20 25 Final Carried 24 | 2 4 6 8 15 19 24 Class Distribution -------------------- 78% | Mutant 20% | Commander-Mutant Dominant Class ---------------- Mutant | -10/Materials Mutant | -10/Mines Mutant | -9/Materials Mutant | -9/Storage Commander-Mutant | -9/Recycling Mutant | -9/Scraptown Resources | -11 -10 -10 -9 -9 -9 -9 ----------- Run | Yrd Mat Min Mat Sto Rec Scr Matter Collected 1244 | 172 58 74 266 484 80 110 Remotely . | . . . . . . . Salvage Created 3054 | . 123 . 638 1153 501 639 Parts 160 | . 14 . 40 78 4 24 Haulers Intercepted 7 | . . . 1 6 . . Recyclers Shooed 7 | . . . 4 3 . . Parts Field Recycled . | . . . . . . . Retrieved Matter . | . . . . . . . Parts Self-Destructed . | . . . . . . . Prevented . | . . . . . . . Parts Restored . | . . . . . . . Kills | -11 -10 -10 -9 -9 -9 -9 ------- Run | Yrd Mat Min Mat Sto Rec Scr Combat Hostiles Destroyed 56 | . 7 . 20 14 1 14 Melee 1 | . . . . . . 1 Guns 29 | . 7 . 13 9 . . Cannons 2 | . . . . 2 . . AOE 21 | . . . 7 3 . 11 Classes Destroyed 13 | . 2 . 3 3 . 5 Worker 3 | . . . . 3 . . Builder 2 | . . . . 1 1 . Hauler 7 | . . . 1 6 . . Recycler 9 | . . . 1 3 5 . Watcher 1 | . . . . 1 . . Swarmer 19 | . 6 . 10 3 . . Grunt 17 | . 1 . 9 7 . . Sentry 6 | . . . 1 4 1 . Federalist 2 | . . . . . . 2 Explorer 1 | . . . . . . 1 Ranger 2 | . . . . . . 2 Guru 2 | . . . . . . 2 Scrapper 7 | . . . . . . 7 Best Kill Streak 14 | . 3 . 7 7 2 14 Combat Bots Only 14 | . 3 . 7 3 1 14 Max Kills in Single Turn 3 | . 1 . 3 2 1 3 Gunslinging 1 | . . . . 1 . . Exploded 3 | . . . 3 2 . 3 Melee 1 | . . . . . . 1 Uniques/NPCs Destroyed . | . . . . . . . Combat | -11 -10 -10 -9 -9 -9 -9 -------- Run | Yrd Mat Min Mat Sto Rec Scr Hostile Shots Fired 264 | . 29 . 85 75 12 63 Missed 84 | . 10 . 29 27 2 16 Hits 180 | . 19 . 56 48 10 47 Melee 4 | . . . . . . 4 Projectile 176 | . 19 . 56 48 10 43 Critical Strikes 5 | . 1 . 3 . . 1 Damage Taken 2331 | . 150 . 634 711 151 685 Core 432 | . 31 . 163 119 . 119 Absorbed by Shields . | . . . . . . . Core Remaining (%) 93 | 100 . 87 . . . . Volleys Fired 180 | . 14 . 68 92 . 6 Largest 2 | . 2 . 2 2 . 1 Hottest 136 | . 40 . 70 136 . 30 Shots Fired 323 | . 28 . 131 158 . 6 Gun 260 | . 28 . 127 105 . . Cannon 50 | . . . . 50 . . Launcher 13 | . . . 4 3 . 6 Special . | . . . . . . . Kinetic 203 | . 28 . 108 67 . . Thermal 107 | . . . 19 88 . . Explosive 13 | . . . 4 3 . 6 Electromagnetic . | . . . . . . . Robot Hit Streak 15 | . 5 . 15 13 . 2 Robot Miss Streak 6 | . 4 . 3 6 . 2 Penetration Max . | . . . . . . . Secondary Targets 4 | . 1 . 1 2 . . Max Gunslinging Chain 1 | . 1 . 1 1 . . Shots Hit Robots 205 | . 12 . 88 83 14 8 Core Hits 113 | . 8 . 38 41 1 25 Critical Kills 1 | . . . . . . 1 Critical Parts Destroyed 4 | . . . . 1 1 2 Critical Strikes 8 | . . . 2 2 1 3 Burn 3 | . . . 2 1 . . Destroy 1 | . . . . 1 . . Smash 4 | . . . . . 1 3 Melee Attacks 33 | . . . . . 21 12 Impact 33 | . . . . . 21 12 Slashing . | . . . . . . . Piercing . | . . . . . . . Sneak Attacks 10 | . . . . . 10 . Combat Hostiles . | . . . . . . . Follow-up Attacks 1 | . . . . . 1 . Damage Inflicted 4799 | . 142 3 1233 1416 889 1116 Guns 1962 | . 132 . 900 930 . . Cannons 307 | . . . . 307 . . Explosions 1443 | . . . 333 154 . 956 Melee 1049 | . . . . . 889 160 Ramming 38 | . 10 3 . 25 . . Kinetic 1448 | . 132 . 751 565 . . Thermal 821 | . . . 149 672 . . Explosive 1443 | . . . 333 154 . 956 Electromagnetic . | . . . . . . . Impact 1049 | . . . . . 889 160 Slashing . | . . . . . . . Piercing . | . . . . . . . Highest Corruption 3 | . . . . . . 3 Average Corruption 3 | . . . . . . 3 Corruption Purged . | . . . . . . . Corruption Blocked . | . . . . . . . Effects 4 | . . . . . . 4 Message Errors 3 | . . . . . . 3 Heat Flow Errors 1 | . . . . . . 1 Overload Shots . | . . . . . . . Overflow Damage 513 | . . . 31 . 347 135 Projectiles . | . . . . . . . Explosions 35 | . . . 31 . . 4 Melee 478 | . . . . . 347 131 Knockbacks 9 | . 1 . . . 5 3 Impact 9 | . 1 . . . 5 3 Kinetic . | . . . . . . . Secondary . | . . . . . . . Self-Inflicted Damage 162 | . . . 60 33 . 69 Shots 5 | . . . 2 1 . 2 Rammed 4 | . 3 1 . . . . Targets Rammed 11 | . 3 1 . 7 . . Kicked 7 | . . . . 7 . . Crushed . | . . . . . . . Highest Temperature 300 | . . . 50 300 . 106 Average Temperature 57 | . . . 16 73 . 54 Received Heat Transfer 769 | . . . 225 261 42 241 Effects 1 | . . . . 1 . . Energy Bleed 1 | . . . . 1 . . Siege Activations . | . . . . . . . Martial Activations . | . . . . . . . Shielding Activations . | . . . . . . . Robots Disrupted . | . . . . . . . Combat Hostiles . | . . . . . . . Robots Corrupted 6 | . . . . . 4 2 Combat Hostiles 3 | . . . . . 1 2 Parts Fried 11 | . . . . . 8 3 Impact Corruptions 14 | . . . . . 10 4 Robots Melted . | . . . . . . . Combat Hostiles . | . . . . . . . Parts Melted 5 | . . . . 4 . 1 Heat Transferred 2294 | . . . 592 1702 . . Parts Sabotaged . | . . . . . . . Parts Stolen . | . . . . . . . Parts Stripped . | . . . . . . . Power Chain Reactions . | . . . . . . . Alert | -11 -10 -10 -9 -9 -9 -9 ------- Run | Yrd Mat Min Mat Sto Rec Scr Maximum Alert Level 1 | . . . 1 1 . . Low Security (%) 88 | 100 100 100 97 69 100 . Level 1 11 | . . . 2 30 . . Level 2 . | . . . . . . . Level 3 . | . . . . . . . Level 4 . | . . . . . . . Level 5 . | . . . . . . . High Security . | . . . . . . . Max Security . | . . . . . . . Peak Influence 385 | . 120 18 327 385 132 . Initial 134 | . . 18 . 134 132 . Average 72 | . 61 1 92 132 21 . Influence Increases 1784 | . 214 . 546 753 271 . Destroy 0b10 Robot/C 980 | . 140 . 400 360 80 . Destroy 0b10 Robot/NC 110 | . . . 10 70 30 . Destroy Leader 226 | . 30 . 72 124 . . Allied During Kill 79 | . . . . 58 21 . Successful Hack 54 | . 14 . 9 12 19 . Select Force Hacks 150 | . . . . 30 120 . Disable Machine 90 | . . . 15 75 . . Destroy Structure 35 | . . . 25 9 1 . Lose Combat Pursuer 60 | . 30 . 15 15 . . Influence Decreases 1784 | . 167 47 227 733 610 . Entered New Map 421 | . . 29 . 185 207 . Time Decay 1278 | . 167 18 217 498 378 . Lost Part 40 | . . . 10 30 . . Lost Ally 45 | . . . . 20 25 . Squads Dispatched 7 | . 1 . 2 4 . . Investigation 4 | . . . 1 3 . . Extermination . | . . . . . . . Reinforcement 3 | . 1 . 1 1 . . Assault . | . . . . . . . Garrison . | . . . . . . . Intercept . | . . . . . . . Searches Triggered . | . . . . . . . Construction Impeded . | . . . . . . . Haulers Reinforced . | . . . . . . . Active Scanning Responses . | . . . . . . . Cargo Convoy Interrupts . | . . . . . . . Stealth | -11 -10 -10 -9 -9 -9 -9 --------- Run | Yrd Mat Min Mat Sto Rec Scr Distress Signals 5 | . . . 2 3 . . Communications Jammed . | . . . . . . . Distress Signals . | . . . . . . . Times Spotted 95 | . 10 . 31 29 4 21 Peak Tracking Total 12 | . 3 . 6 6 2 12 Tactical Retreats 3 | . 1 . 1 1 . . Traps | -11 -10 -10 -9 -9 -9 -9 ------- Run | Yrd Mat Min Mat Sto Rec Scr Traps Triggered 4 | . . . 1 3 . . Indirectly . | . . . . . . . Trap Hack Attempts . | . . . . . . . Triggered . | . . . . . . . Disarmed . | . . . . . . . Reprogrammed . | . . . . . . . Reused . | . . . . . . . Traps Extracted . | . . . . . . . Installed . | . . . . . . . Triggered . | . . . . . . . Machines | -11 -10 -10 -9 -9 -9 -9 ---------- Run | Yrd Mat Min Mat Sto Rec Scr Machines Disabled 10 | . . . 1 5 . 4 Max in Single Turn 1 | . . . 1 1 . 1 Machines Repaired . | . . . . . . . Machines Dismantled . | . . . . . . . Machines Sabotaged . | . . . . . . . Overloaded Fab Kills . | . . . . . . . Hacking | -11 -10 -10 -9 -9 -9 -9 --------- Run | Yrd Mat Min Mat Sto Rec Scr Machines Accessed 24 | . 3 . 5 6 9 1 Terminals 17 | . 3 . 5 4 5 . Fabricators . | . . . . . . . Repair Stations . | . . . . . . . Recycling Units 6 | . . . . 2 4 . Scanalyzers . | . . . . . . . Garrison Access . | . . . . . . . Total Hacks 55 | . 10 . 14 10 17 4 Successful 25 | . 2 . 4 4 11 4 Failed 30 | . 8 . 10 6 6 . Catastrophic 9 | . 2 . 5 2 . . Database Lockouts . | . . . . . . . Manual 43 | . 10 . 11 5 17 . Terminals 41 | . 10 . 14 6 11 . Fabricators . | . . . . . . . Repair Stations . | . . . . . . . Recycling Units 10 | . . . . 4 6 . Scanalyzers . | . . . . . . . Garrison Access . | . . . . . . . Terminal Hacks 11 | . 2 . 2 3 . 4 Record 4 | . . . . . . 4 Part Schematic 2 | . 2 . . . . . Open Door 2 | . . . . 2 . . Branch Access Points 1 | . . . 1 . . . Hauler Manifests 1 | . . . 1 . . . Zone Layout 1 | . . . . 1 . . Fabricator Hacks . | . . . . . . . Repair Station Hacks . | . . . . . . . Recycling Unit Hacks . | . . . . . . . Scanalyzer . | . . . . . . . Garrison Access Hacks . | . . . . . . . Unauthorized Hacks 14 | . . . 2 1 11 . Terminals 9 | . . . 2 . 7 . Botnet 4 | . . . 2 . 2 . Skim 5 | . . . . . 5 . Fabricators . | . . . . . . . Repair Stations . | . . . . . . . Recycling Units 5 | . . . . 1 4 . Tunnel 5 | . . . . 1 4 . Scanalyzers . | . . . . . . . Garrison Access . | . . . . . . . Data Cores Recovered . | . . . . . . . Used . | . . . . . . . Hacking Detections 14 | . 3 . 4 3 4 . Full Trace Events 7 | . 3 . 2 2 . . Feedback Events . | . . . . . . . Feedback Blocked . | . . . . . . . Robot Schematics Acquired . | . . . . . . . Robots Built . | . . . . . . . Authchips . | . . . . . . . Time . | . . . . . . . Total Robot Build Rating . | . . . . . . . Part Schematics Acquired 1 | . 1 . . . . . Parts Built . | . . . . . . . Authchips . | . . . . . . . Time . | . . . . . . . Total Part Build Rating . | . . . . . . . Part Studies Acquired . | . . . . . . . Parts Repaired . | . . . . . . . Time . | . . . . . . . Parts Recycled . | . . . . . . . Recycled Matter . | . . . . . . . Retrieved Matter . | . . . . . . . Retrieved Components . | . . . . . . . Parts Scanalyzed . | . . . . . . . Part Schematics Acquired . | . . . . . . . Parts Damaged . | . . . . . . . Bothacking | -11 -10 -10 -9 -9 -9 -9 ------------ Run | Yrd Mat Min Mat Sto Rec Scr Used RIF Installer . | . . . . . . . Robots Hacked . | . . . . . . . Non-combat . | . . . . . . . Combat . | . . . . . . . Robot Hacks Applied . | . . . . . . . Relay Couplers Released . | . . . . . . . Fabnet Peak Effective % . | . . . . . . . Robots Rewired . | . . . . . . . Allies Hacked . | . . . . . . . Hacks Repelled . | . . . . . . . Allies | -11 -10 -10 -9 -9 -9 -9 -------- Run | Yrd Mat Min Mat Sto Rec Scr Total Allies 10 | . . . . 10 . . Largest Group 10 | . . . . 10 5 3 Highest-Rated Group 88 | . . . . 88 40 24 Highest-Rated Ally 16 | . . . . 16 8 8 Total Orders 3 | . . . . . 3 . STAY 1 | . . . . . 1 . FOLLOW 2 | . . . . . 2 . Ally Attacks 73 | . . . . 34 19 20 Total Damage 589 | . . . . 241 163 185 Kills 9 | . . . . 4 3 2 Allies Corrupted . | . . . . . . . Allies Melted 2 | . . . . . . 2 Intel | -11 -10 -10 -9 -9 -9 -9 ------- Run | Yrd Mat Min Mat Sto Rec Scr Active Infowar (turns) 493 | . . . . 493 . . T.N.C. 493 | . . . . 493 . . Robot Analysis Total . | . . . . . . . Derelict Logs Recovered 2 | . . 2 . . . . Drone Launches . | . . . . . . . Drone Recoveries . | . . . . . . . Exploration | -11 -10 -10 -9 -9 -9 -9 ------------- Run | Yrd Mat Min Mat Sto Rec Scr Turns Passed 7662 | 81 375 314 565 1864 1774 2689 Spaces Moved 3926 | 46 185 195 232 1149 730 1389 Core 2 | 2 . . . . . . Treads 1809 | 44 185 195 56 . . 1329 Legs 2115 | . . . 176 1149 730 60 Wheels . | . . . . . . . Hover . | . . . . . . . Flight . | . . . . . . . Fastest Speed 50 | 50 160 160 120 120 190 160 Average Speed 164 | 155 160 160 129 122 216 178 Slowest Speed 260 | 160 160 160 160 190 260 240 Overloaded Moves . | . . . . . . . Propulsion Burnouts . | . . . . . . . Robots Hopped . | . . . . . . . Potential Cave-ins . | . . . . . . . Cave-ins Triggered . | . . . . . . . Exploration Rate (%) 56 | 4 39 44 26 96 96 88 Regions Visited 6 Branch Regions 4 Pre-discovered Areas 9 | . . 1 . 1 7 . Known Exits Taken 1 | . . . 1 . . . Unknown Exits Taken 5 | 1 1 1 . 1 1 . Scrap Searched 6 | . . 1 . . . 5 Spaces Dug 2 | . . . . . 1 1 Terrain Destroyed 81 | . . . 22 8 1 50 Melee 2 | . . . . . 1 1 Projectile . | . . . . . . . AOE 79 | . . . 22 8 . 49 Terrain Rammed . | . . . . . . . Walls Destroyed . | . . . . . . . Machines Disabled . | . . . . . . . Actions | -11 -10 -10 -9 -9 -9 -9 --------- Run | Yrd Mat Min Mat Sto Rec Scr Total 4794 | 53 237 197 381 1458 889 1579 Wait 456 | . 34 . 52 118 127 125 Move 3920 | 45 184 194 231 1148 729 1389 Hop . | . . . . . . . Pick Up 64 | 2 2 2 9 27 6 16 Fast Attach 31 | 6 . . 4 18 1 2 Attach 11 | . . . 2 2 1 6 Detach . | . . . . . . . Swap 17 | . . . 4 6 2 5 Drop 69 | . . . 11 35 4 19 Fire 180 | . 14 . 68 92 . 6 Melee 27 | . . . . . 16 11 Ram . | . . . . . . . Kick 7 | . . . . 7 . . Crush 4 | . 3 1 . . . . Escape Stasis 5 | . . . . 5 . . Rewire 3 | . . . . . 3 . Trap . | . . . . . . . Miscellaneous . | . . . . . . . Route ------- -11/Scrapyard -10/Materials (discovered 2 exits: *Mat / [*Min]) -10/Mines -9/Materials (discovered 4 exits: [*Mat] / Min x2 / *Sto) -9/Storage (discovered 2 exits: [*Mat] / *Rec) -9/Recycling (discovered 2 exits: [*Fac] / *Scr) -9/Scraptown (discovered 2 exits: [*Fac x2]) History --------- Turn | Location | Event 2 | -11/Scrapyard | Met Revision 17 6 | -11/Scrapyard | Discovered new exit (range 16) 82 | -11/Scrapyard | Entered Materials 280 | -10/Materials | Discovered new exit (range 10) 311 | -10/Materials | Build established: Mutant 395 | -10/Materials | Discovered new exit (range 12) 457 | -10/Materials | Entered Mines 489 | -10/Mines | Found a hidden stash of uninstalled traps 504 | -10/Mines | Received a Rocket Launcher from a helpful Derelict 636 | -10/Mines | Learned Materials terminal intel 727 | -10/Mines | Discovered new exit (range 9) 743 | -10/Mines | Learned location of Zion (-6) 771 | -10/Mines | Entered Materials 771 | -9/Materials | Evolved 2 slots: Propulsion x1, Utility x1 772 | -9/Materials | Loaded intel: 12 terminal locations 1170 | -9/Materials | Identified exit to Mines 1170 | -9/Materials | Identified exit to Storage 1326 | -9/Materials | Discovered new exit (range 13) 1336 | -9/Materials | Entered Storage 1350 | -9/Storage | Destroyed 7 combat bots 1742 | -9/Storage | Core integrity fell below 50% 2645 | -9/Storage | Assisted by bots powering up and referring to "LRC-V3" 2737 | -9/Storage | Discovered new exit (range 5) 2785 | -9/Storage | Lost 5 allies 2946 | -9/Storage | Build established: Commander-Mutant 3034 | -9/Storage | Used back door to open Recycling access 3034 | -9/Storage | Discovered new exit (range 5) 3200 | -9/Storage | Entered Recycling 3200 | -9/Recycling | Accompanied by 5 allies 4318 | -9/Recycling | Discovered new exit (range 15) 4542 | -9/Recycling | Build established: Mutant 4756 | -9/Recycling | Scanned before Scraplab entrance 4767 | -9/Recycling | Learned Storage stockpile data 4783 | -9/Recycling | Entered Scraplab 4808 | -9/Recycling | Learned location of Storage (-9) 4839 | -9/Recycling | Learned 2 Materials zone layouts 4851 | -9/Recycling | Discovered new exit (range 3) 4940 | -9/Recycling | Learned location of 2 exits from Materials 4974 | -9/Recycling | Entered Scraptown 4974 | -9/Scraptown | Accompanied by 3 allies 5653 | -9/Scraptown | Discovered new exit (range 13) 5896 | -9/Scraptown | System corruption cleaned by C-Scrubber 5981 | -9/Scraptown | Visited Awakened 6059 | -9/Scraptown | Visited The Evicted 6101 | -9/Scraptown | Visited Cave Peace 6171 | -9/Scraptown | Visited TADAMA 6250 | -9/Scraptown | Visited Shadow of the Wyrm 6282 | -9/Scraptown | Visited Fellowship of the Rings 6331 | -9/Scraptown | Visited Assassins FH 6435 | -9/Scraptown | Visited UFD Registry 6450 | -9/Scraptown | Registered with UFD as "Quantumeater" 6487 | -9/Scraptown | Visited Scrapoid Research Area 6527 | -9/Scraptown | Visited Scrap Suit Storage 6551 | -9/Scraptown | Visited Supply Room 6781 | -9/Scraptown | Visited Junk Repository 6856 | -9/Scraptown | Visited Derelict Rescue Squad 6898 | -9/Scraptown | Visited Science Testing Area 6912 | -9/Scraptown | Visited Curators Association 6968 | -9/Scraptown | Visited DA-N13 Charitable Foundation 6986 | -9/Scraptown | Found DCF Scrap (30 items) 7029 | -9/Scraptown | Visited Observation Area 7083 | -9/Scraptown | Visited Junk Repository 7209 | -9/Scraptown | Met Optimus 7209 | -9/Scraptown | Accepted into 0bPrime 7560 | -9/Scraptown | Civil war broke out across Scraptown 7570 | -9/Scraptown | Found Ballwheel 7594 | -9/Scraptown | Found Siege Cannon Replica 7646 | -9/Scraptown | Core integrity fell below 20% 7653 | -9/Scraptown | Discovered new exit (range 9) 7663 | -9/Scraptown | Destroyed by P5-F08(j) with Overtuned Pulse Rifle Last Messages --------------- 07653_ EXIT=FOUND 07653_ QG-9HG(j) destroyed. 07654_ The unstable cave ceiling collapses. 07654_ EZ-ZQR(g) destroyed. 07655_ NL-PBI(j) destroyed. 07655_ Q5-1B6(j) destroyed. 07655_ Penetrated by Bolt. 07655_ Lgt. Treads destroyed. 07655_ Critical hit (Burn: +50). 07657_ 29-PC2(p) destroyed. 07657_ FG-W2M(h) destroyed. 07660_ P5-F08(j) cannibalizes Imp. Deuterium Engine to repair Lgt. Deuterium Engine. 07660_ C-Scrubber disabled. 07661_ The unstable cave ceiling collapses. 07662_ Ovr. Pulse Rifle melted. 07662_ T4-VRS(j) destroyed. 07662_ FC-6FR(j) destroyed. 07663_ P5-F08(j) cannibalizes Scrap Suit to repair Mak. Microdissipator Network. Map ----- +----------------------------------------------------+ | | | | | | | | | | | | | | | ?????????????????????????????????????????????????? | | ?????????????????????????????????????????????????? | | ?????????????????????????????????????????????????? | | ?????????????????????????????????????????????????? | | ?????????????????????????????????????????????????? | | ?????????????????????????????????????????????????? | | ?????????????????????????????????????????????????? | | ?????????????????????????????????????????????????? | | ?????????????????????????????????????????????????? | | ?????????????????????????????????????????????????? | | ?????????????????????????????????????????????????? | | ?????????????????????????????????###?????????????? | | ???????????????????????###??####"""#?????????????? | | ??????????????????????##;### =!%["##????????????? | | ?????????????????????## [=%<[=##???????????? | | ???????????" ##!!"#### %=! [ !*%[g%*!#???????????? | | ??????????![ ![!=%![!%!=%[!#???????????? | | ??????????? ===[%*% %j=!![= #???????????? | | ??????????????????####*!!@ ! ![ #???????????? | | ?????????????????????##[% #????????????? | | ???########???????????#!=### # ###????????????? | | ????""""""#???????????#%*##?#"###"#??????????????? | | ?????? "#???????????#*=[### "=" ####???????????? | | ???????" "#???????????#!!# """ "#???????????? | | #??????" "#???????????# ## " ""#????????????? | | #"?????" "#?########### ## = #????????????? | | #"?????" "#?# ##*=*## ##""! % ""##???????????? | | #" ????" "#?#] =##/*=## #" "#???????????? | | #" """"" "#?# %*!![%*## ##"" ""##???????????? | | #" "#?# !!=![[[#" ##!" "]#????????????? | | #"" #?# *= [![## ##"" ""#????????????? | | # #?# ==*!!*## #" "#???????????? | | ##### #####?#####!##### ##=##########???????????? | | ##### ###########=#####=[#%[##???#######?????????? | | """"" """"""""""" """""!!"!%"#??? #?????????? | | %= ! "#?? #?????????? | | =[ "#?? #?????????? | | "#? #?????????? | | "## #?????????? | | #?????????? | | """"""""""""""""""""""" "## #?????????? | | """"""""""""""""""""""" "#? #?????????? | | ### ################"" "#?? #?????????? | +----------------------------------------------------+ Best States ------------- Heat Dissipation 48 Energy Generation 14 Energy Capacity 280 Matter Stores 300 Matter Capacity 300 Sight Range 16 Terrain Scan Density 10 Armor Coverage 150 Evasion (%) 55 Recoil Reduction 3 Authchip Count 1 Item Schematics ----------------- Cargo Storage Unit | -10/Materials | Hacked Robot Schematics ------------------ None Fabricated ------------ Nothing Repaired ---------- Nothing Studied --------- None Alien Tech Used ----------------- None Achievements -------------- None Challenges ------------ None Game ------ Seed AuthchipStrikeStrikerail Manual? 0 Play Time 00:27:18 Cumulative 591.2 hours Start 2026.09.05 @ 01:58:29 End 2026.09.05 @ 02:28:16 Sessions 1 Manual Loads 0 Difficulty Rogue Special Mode None Game No. 493 Rogue 493 Adventurer 0 Explorer 0 Win Type - Total 19 Types 11/0/3/1/0/0/0/2/0/2 Lore% 69 Gallery% 72 Achievement% 69 Wizard Run 0 Options --------- Layout 1 ASCII 0 Keyboard 0 Movement Mouse Keybinds 0 Fullscreen 2 Font 24/Cog Map View 50x35 Zoom Use 26% Tactical HUD 1 Map Filters NONE Filters NONE Steam 1 RUN: a9bae293-c691-4a57-995b-0e98905bb43e